Cogmind - Beta 9.6 @@@ ROGUE MODE // 2020.05.13 @ 22:13:08 Player: 3.14 Result: Escaped! Performance ------------- Evolutions (9) 4500 Regions Visited (30) 6000 Robots Destroyed (212) 1060 Value Destroyed (12792) 12792 Prototype IDs (11) 220 Alien Tech Used (0) 0 Bonus (13043) 13043 TOTAL SCORE: 37615 Bonus ------- High Alert Combat Kills 388 Follower Combat Kills 6034 Entered Garrisons 2000 Used RIF Installer 5000 Win 3000 Friendly Fire -3379 Cogmind --------- Core Integrity 407/1600 Matter 269/300 Energy 100/100 System Corruption 17% Temperature Cool (0) Movement Core (50) Location To Epsilon Eridani Parts ------- > --- POWER (1) -------- (None) > --- PROPULSION (2) --- (None) > --- UTILITY (20) ----- (None) > --- WEAPON (2) ------- (None) > --- INVENTORY (4) ---- Heavy Reactive Plating Power Sword Peak State ------------ > --- POWER ------------ Reinforced Quantum Reactor > --- PROPULSION ------- Biometal Heavy Treads > --- UTILITY ---------- Large Storage Unit Large Storage Unit High-capacity Storage Unit High-capacity Storage Unit Spectral Analyzer Improved Medium Armor Plating Heavy Reactive Plating Relay Coupler [NC] Relay Coupler [C] Relay Coupler [C] Relay Coupler [C] Relay Coupler [C] Relay Coupler [ARC] Relay Coupler [Sentry] Relay Coupler [Sentry] Relay Coupler [Sentry] Relay Coupler [Hunter] Relay Coupler [Hunter] Relay Coupler [Hunter] > --- WEAPON ----------- Railgun Advanced Remote Datajack > --- INVENTORY -------- Particle Reactor Particle Reactor Biometal Heavy Treads Biometal Heavy Treads High-capacity Matter Pod Heavy Reactive Plating Heavy Reactive Plating Antimissile System Relay Coupler [NC] Relay Coupler [C] Relay Coupler [C] Relay Coupler [C] Relay Coupler [C] Relay Coupler [C] Relay Coupler [Sentry] Relay Coupler [Sentry] Relay Coupler [Sentry] Relay Coupler [Specialist] Relay Coupler [Hunter] KE Penetrator Railgun Mini Grenade Launcher Advanced Remote Datajack Advanced Remote Datajack Power Sword [Rating: 152] Favorites ----------- Power Improved Deuterium Engine Engine Improved Deuterium Engine Power Core Light Nuclear Core Reactor Particle Reactor Propulsion Light Treads Treads Light Treads Wheel Armored Wheel Utility Relay Coupler [C] Device Advanced Heat Sink Storage High-capacity Storage Unit Processor Spectral Analyzer Hackware Relay Coupler [C] Protection Medium Armor Plating Weapon KE Penetrator Energy Gun Precision Beam Rifle Energy Cannon Advanced Beam Cannon Ballistic Gun KE Penetrator Launcher Mini Grenade Launcher Special Weapon Remote Datajack Slashing Weapon Axe Special Melee Weapon Improved Datajack Build | -11 -10 -10 -9 -9 -9 -8 -8 -8 -8 -8 -7 -7 -7 -7 -6 -6 -6 -6 -5 -5 -4 -4 -4 -4 -3 -2 -2 -2 -1 -1 ------- Run | Scr Mat Min Mat Min Exi Min Mat Gar Mat Gar Fac Gar Fac Gar Fac Gar Fac Gar Fac Gar Fac Gar Fac Gar Res Res Gar Res Acc Com Slots Evolved 18 | . . . 2 . . . 2 . . . 2 . . . 2 . . . 2 . 2 . . . 2 2 . . 2 . Power . | . . . . . . . . . . . . . . . . . . . . . . . . . . . . . . . Propulsion . | . . . . . . . . . . . . . . . . . . . . . . . . . . . . . . . Utility 18 | . . . 2 . . . 2 . . . 2 . . . 2 . . . 2 . 2 . . . 2 2 . . 2 . Weapon . | . . . . . . . . . . . . . . . . . . . . . . . . . . . . . . . Parts Attached 394 | 8 10 . 10 . 2 6 17 20 . 13 19 17 22 13 14 32 . 20 6 17 11 23 13 14 5 15 18 9 38 2 Power 20 | 1 2 . 1 . . . 2 1 . 1 2 . . 2 . 2 . 1 . 1 1 . 1 . 1 . . 1 . . Engine 10 | 1 2 . 1 . . . 2 . . . 2 . . 2 . . . . . . . . . . . . . . . . Core 5 | . . . . . . . . 1 . 1 . . . . . 1 . 1 . 1 . . . . . . . . . . Reactor 5 | . . . . . . . . . . . . . . . . 1 . . . . 1 . 1 . 1 . . 1 . . Propulsion 39 | 2 2 . 2 . . 2 2 4 . 3 3 2 1 2 1 1 . 1 2 1 1 . 1 . . 2 . 1 2 1 Treads 31 | 2 2 . 2 . . 2 2 3 . 2 2 . 1 1 1 . . 1 1 1 1 . 1 . . 2 . 1 2 1 Leg . | . . . . . . . . . . . . . . . . . . . . . . . . . . . . . . . Wheel 8 | . . . . . . . . 1 . 1 1 2 . 1 . 1 . . 1 . . . . . . . . . . . Hover . | . . . . . . . . . . . . . . . . . . . . . . . . . . . . . . . Flight . | . . . . . . . . . . . . . . . . . . . . . . . . . . . . . . . Utility 157 | 2 5 . 3 . 2 . 6 7 . 2 5 5 7 5 8 14 . 6 4 5 4 16 5 6 4 6 14 2 13 1 Device 5 | . . . . . . . 3 2 . . . . . . . . . . . . . . . . . . . . . . Storage 24 | 2 5 . 2 . 1 . . 2 . . . 1 . . 1 1 . . 1 . . 3 . 1 2 . 2 . . . Processor 4 | . . . . . . . 1 . . . . . . . . . . 1 . . . . . . . 1 . . 1 . Hackware 77 | . . . . . . . . . . . 4 2 4 2 4 9 . 4 2 3 4 11 4 3 2 3 6 1 8 1 Protection 47 | . . . 1 . 1 . 2 3 . 2 1 2 3 3 3 4 . 1 1 2 . 2 1 2 . 2 6 1 4 . Artifact . | . . . . . . . . . . . . . . . . . . . . . . . . . . . . . . . Weapon 178 | 3 1 . 4 . . 4 7 8 . 7 9 10 14 4 5 15 . 12 . 10 5 7 6 8 . 7 4 5 23 . Energy Gun 8 | . . . . . . . 1 4 . 3 . . . . . . . . . . . . . . . . . . . . Energy Cannon 10 | . . . . . . . 4 3 . . . 1 1 1 . . . . . . . . . . . . . . . . Ballistic Gun 82 | 3 1 . 4 . . 2 . . . 1 4 4 7 1 3 7 . 7 . 4 3 3 3 4 . 5 2 3 11 . Ballistic Cannon . | . . . . . . . . . . . . . . . . . . . . . . . . . . . . . . . Launcher 15 | . . . . . . 2 1 1 . 2 1 2 . 1 1 1 . 1 . 1 . . . . . . . . 1 . Special Weapon 38 | . . . . . . . . . . . . 2 3 1 1 4 . 3 . 3 2 3 3 4 . 2 2 1 4 . Impact Weapon . | . . . . . . . . . . . . . . . . . . . . . . . . . . . . . . . Slashing Weapon 24 | . . . . . . . 1 . . 1 3 1 3 . . 3 . 1 . 2 . 1 . . . . . 1 7 . Piercing Weapon . | . . . . . . . . . . . . . . . . . . . . . . . . . . . . . . . Special Melee Weapon 1 | . . . . . . . . . . . 1 . . . . . . . . . . . . . . . . . . . Unidentified Prototypes 3 | . . . 1 . . . 1 . . . . . 1 . . . . . . . . . . . . . . . . . Parts Lost 27 | . . . 1 . . . . 1 . . 2 . 1 2 . 1 . 3 1 1 2 . 2 1 . 2 1 . 5 1 Power 3 | . . . . . . . . 1 . . . . . 1 . . . 1 . . . . . . . . . . . . Propulsion 3 | . . . . . . . . . . . 1 . . . . . . . 1 . . . . . . . . . . 1 Utility 12 | . . . . . . . . . . . . . 1 1 . 1 . . . . 1 . 2 1 . 1 1 . 3 . Weapon 9 | . . . 1 . . . . . . . 1 . . . . . . 2 . 1 1 . . . . 1 . . 2 . Highest Loss Streak 2 | . . . 1 . . . . 1 . . 2 . 1 2 . 1 . 1 1 1 2 . 1 1 . 1 1 . 2 1 Average Slot Usage (%) 92 | . 100 100 98 100 100 100 100 92 90 90 91 90 91 90 88 89 93 92 88 92 84 90 93 92 88 87 90 91 87 82 Engine 3 | . 14 14 11 11 11 11 9 . . . 4 7 7 6 6 1 . . . . . . . . . . . . . . Core 1 | . . . . . . . . 8 9 9 2 . . . . 1 . 2 5 5 3 . . . . . . . . . Reactor 1 | . . . . . . . . . . . . . . . . 3 6 3 . . 1 5 5 5 4 4 4 4 4 3 Treads 9 | . 28 28 22 22 22 22 18 15 9 9 6 7 7 6 6 6 6 6 2 10 6 5 5 5 4 4 4 4 4 4 Wheel 2 | . . . . . . . . 2 9 9 6 7 7 7 6 6 6 6 8 . . . . . . . . . . . Device 1 | . . . . . . . 14 9 9 9 2 . . . . . . . . . . . . . . . . . . . Storage 18 | . 28 28 31 33 33 33 27 21 18 18 15 15 15 15 13 13 13 13 11 11 10 13 21 21 19 17 17 17 16 14 Processor 2 | . . . . . . . 1 9 9 7 . . . . . . . 3 5 5 5 . . . . 3 4 4 4 7 Hackware 26 | . . . . . . . . . . . 22 28 32 25 24 26 33 32 33 37 35 50 47 47 45 45 39 40 40 33 Protection 8 | . . . 11 11 11 11 10 7 9 10 12 7 4 11 16 16 13 9 6 6 10 3 4 3 4 4 12 10 10 11 Energy Gun 1 | . . . . . . . . 14 18 11 2 . . . . . . . . . . . . . . . . . . . Energy Cannon 1 | . . . . . . . 16 3 . . . . . . . . . . . . . . . . . . . . . . Ballistic Gun 7 | . 28 28 22 22 22 21 . . . 1 8 6 5 . 1 6 13 8 11 1 3 8 8 6 4 3 7 6 4 3 Special Weapon 1 | . . . . . . . . . . . . 4 3 4 5 2 . 3 . 4 3 1 1 2 4 3 . 1 1 . Slashing Weapon 1 | . . . . . . . . . . 3 2 3 4 7 5 3 . . . 4 3 . . . . . . . 1 3 Naked Turns 6 | . . . . . . . . . . . . . . . . . . . . . . . . . . . . . . 6 Heaviest Build 194 | 17 41 40 68 68 84 84 94 129 129 135 140 138 135 152 159 177 157 157 142 151 163 167 112 123 141 160 166 180 194 192 Greatest Support 75 | 40 40 40 40 40 40 40 40 40 12 20 22 12 22 12 30 12 12 30 24 53 70 70 70 70 70 75 75 75 75 75 Greatest Overweight (x) 14 | . 1 . 1 1 2 2 2 10 10 11 11 11 10 12 13 14 13 13 11 11 2 2 1 1 2 2 2 2 2 2 Average Overweight (x) 4 | . . . 1 1 1 2 2 4 10 9 10 10 7 12 12 12 13 11 7 3 2 1 1 1 1 1 1 2 2 1 Largest Inventory Capacity 52 | 8 16 16 22 22 24 24 24 44 32 32 32 52 32 32 52 32 32 32 52 32 32 44 30 30 32 32 32 32 32 32 Average Capacity 29 | 5 11 16 20 22 23 24 24 28 32 32 32 32 32 32 32 32 32 32 32 32 32 29 30 30 30 32 32 32 32 30 Most Carried 32 | 4 16 16 22 22 24 24 24 32 32 32 32 32 32 32 32 32 32 32 32 32 32 31 30 30 30 32 32 32 32 31 Average Carried 27 | 2 10 16 19 22 23 23 23 25 32 31 27 29 31 30 30 31 32 31 31 31 31 26 27 28 29 30 29 31 29 28 Final Capacity 32 | 8 16 16 22 22 24 24 24 32 32 32 32 32 32 32 32 32 32 32 32 32 32 30 30 30 32 32 32 32 32 4 Final Carried 32 | 4 16 16 22 22 24 24 24 32 32 32 28 30 31 32 30 32 32 32 30 32 29 30 25 30 30 32 32 32 31 3 Class Distribution -------------------- 56% | Botlord-Mutant 20% | Bothacker-Mutant 14% | Hauler-Mutant 5% | Mutant Dominant Class ---------------- Mutant | -10/Materials Mutant | -10/Mines Hauler-Mutant | -9/Materials Hauler-Mutant | -9/Mines Hauler-Mutant | -9/Exiles Hauler-Mutant | -8/Mines Hauler-Mutant | -8/Materials Hauler-Mutant | -8/Garrison Bothacker-Mutant | -8/Materials Bothacker-Mutant | -8/Garrison Bothacker-Mutant | -7/Factory Bothacker-Mutant | -7/Garrison Bothacker-Mutant | -7/Factory Bothacker-Mutant | -7/Garrison Botlord-Mutant | -6/Factory Botlord-Mutant | -6/Garrison Botlord-Mutant | -6/Factory Botlord-Mutant | -6/Garrison Botlord-Mutant | -5/Factory Botlord-Mutant | -5/Garrison Botlord-Mutant | -4/Factory Botlord-Mutant | -4/Garrison Botlord-Mutant | -4/Factory Botlord-Mutant | -4/Garrison Botlord-Mutant | -3/Research Botlord-Mutant | -2/Research Botlord-Mutant | -2/Garrison Botlord-Mutant | -2/Research Botlord-Mutant | -1/Access Botlord-Mutant | -1/Command Resources | -11 -10 -10 -9 -9 -9 -8 -8 -8 -8 -8 -7 -7 -7 -7 -6 -6 -6 -6 -5 -5 -4 -4 -4 -4 -3 -2 -2 -2 -1 -1 ----------- Run | Scr Mat Min Mat Min Exi Min Mat Gar Mat Gar Fac Gar Fac Gar Fac Gar Fac Gar Fac Gar Fac Gar Fac Gar Res Res Gar Res Acc Com Matter Collected 9742 | 286 318 . 271 6 . 249 212 227 . 296 263 271 294 312 339 562 . 379 281 322 248 719 370 910 . 438 857 155 1054 103 Remotely . | . . . . . . . . . . . . . . . . . . . . . . . . . . . . . . . Salvage Created 11972 | 97 484 . 553 30 . 265 789 915 . 827 370 566 342 419 248 562 . 258 344 430 54 795 377 417 . 223 1208 155 1244 . Parts 541 | 4 39 . 33 3 . 14 37 42 . 38 14 18 22 9 10 17 . 9 19 19 4 24 8 13 . 16 35 11 83 . Haulers Intercepted 7 | . 2 . 2 . . . 3 . . . . . . . . . . . . . . . . . . . . . . . Recyclers Shooed 11 | . . . 2 . . 1 2 . . . 1 . 1 . 1 . . . . . 1 . 2 . . . . . . . Parts Field Recycled . | . . . . . . . . . . . . . . . . . . . . . . . . . . . . . . . Retrieved Matter . | . . . . . . . . . . . . . . . . . . . . . . . . . . . . . . . Parts Self-Destructed . | . . . . . . . . . . . . . . . . . . . . . . . . . . . . . . . Prevented . | . . . . . . . . . . . . . . . . . . . . . . . . . . . . . . . Kills | -11 -10 -10 -9 -9 -9 -8 -8 -8 -8 -8 -7 -7 -7 -7 -6 -6 -6 -6 -5 -5 -4 -4 -4 -4 -3 -2 -2 -2 -1 -1 ------- Run | Scr Mat Min Mat Min Exi Min Mat Gar Mat Gar Fac Gar Fac Gar Fac Gar Fac Gar Fac Gar Fac Gar Fac Gar Res Res Gar Res Acc Com Combat Hostiles Destroyed 164 | . 13 . 9 3 . 9 13 19 . 17 5 9 4 5 4 9 . 3 4 8 . 2 3 2 . 3 4 1 15 . Melee 12 | . . . . . . . . . . . 2 1 1 1 1 . . . . 1 . . . . . . . . 5 . Guns 86 | . 13 . 9 . . 4 . 5 . 6 2 2 2 . 1 6 . 3 4 4 . 2 3 2 . 3 4 1 10 . Cannons 20 | . . . . . . . 9 8 . . . 1 1 1 . . . . . . . . . . . . . . . . AOE 44 | . . . . 3 . 5 4 4 . 11 1 5 . 3 2 3 . . . 3 . . . . . . . . . . Classes Destroyed 15 | 1 4 . 1 . . 3 1 . . . 1 . . . 2 . . 1 . . . . 1 . . . . . . . Worker 6 | . . . . . . 1 1 . . . 1 . . . . . . . . . 2 . 1 . . . . . . . Builder 5 | . . . . . . . . . . . . . . . 1 . . . 1 . . . . . . . . 1 2 . Tunneler 1 | . . . . . . . . . . . . . . . 1 . . . . . . . . . . . . . . . Hauler 7 | . 2 . 2 . . . 3 . . . . . . . . . . . . . . . . . . . . . . . Recycler 13 | 1 1 . 2 . . . 2 . . . 1 . 3 . 1 . . . 1 . . . 1 . . . . . . . Operator 1 | . 1 . . . . . . . . . . . . . . . . . . . . . . . . . . . . . Swarmer 48 | . 9 . 3 3 . 3 3 7 . 4 . 3 . . . 4 . 1 . 3 . . . . . . . . 5 . Grunt 64 | . 4 . 2 . . 4 9 7 . 10 2 4 . 4 1 3 . 1 2 3 . 4 1 . . . 2 . 1 . Brawler 2 | . . . . . . 1 . 1 . . . . . . . . . . . . . . . . . . . . . . Duelist 11 | . . . . . . 1 . 2 . 1 2 . . 1 . 1 . 1 . 1 . . . . . . . 1 . . Sentry 10 | . . . 4 . . . . 1 . 1 . . . . . . . . . 1 . . . . . 1 2 . . . Demolisher 1 | . . . . . . . . . . . . . . . . . . . . . . . 1 . . . . . . . Hunter 14 | . . . . . . . 1 1 . 1 . 2 2 . 2 . . 1 . . . . . . . . 1 . 3 . Programmer 28 | . . . . . . . . . . . 2 . 2 . 1 1 . . 2 1 . 1 2 2 . 2 . 1 11 . Behemoth 1 | . . . . . . . . . . . . . . . . . . 1 . . . . . . . . . . . . Best Kill Streak 12 | 1 5 . 6 3 . 6 5 4 . 12 3 3 2 3 6 3 . 1 3 3 1 1 2 2 . 2 2 1 3 . Combat Bots Only 12 | . 3 . 5 3 . 6 5 4 . 12 3 3 1 3 3 3 . 1 2 3 . 1 2 2 . 2 2 1 3 . Max Kills in Single Turn 3 | 1 1 . 1 3 . 3 2 3 . 3 1 2 1 2 1 3 . 1 1 2 1 2 1 1 . 1 1 1 3 . Gunslinging 1 | . . . . . . . . . . . . . . . . . . . . . . . . . . . . . 1 . Exploded 3 | . . . . 3 . 3 2 3 . 3 1 2 . 2 1 3 . . . 2 . . . . . . . . . . Melee 1 | . . . . . . . . . . . 1 1 1 1 1 . . . . 1 . . . . . . . . 1 . Uniques/NPCs Destroyed . | . . . . . . . . . . . . . . . . . . . . . . . . . . . . . . . Combat | -11 -10 -10 -9 -9 -9 -8 -8 -8 -8 -8 -7 -7 -7 -7 -6 -6 -6 -6 -5 -5 -4 -4 -4 -4 -3 -2 -2 -2 -1 -1 -------- Run | Scr Mat Min Mat Min Exi Min Mat Gar Mat Gar Fac Gar Fac Gar Fac Gar Fac Gar Fac Gar Fac Gar Fac Gar Res Res Gar Res Acc Com Damage Taken 17640 | . 340 . 156 40 . 638 489 872 . 495 845 220 277 932 900 404 . 578 687 296 957 603 694 762 . 1624 682 131 2235 1783 Core 2556 | . 33 . 7 . . 67 68 43 . 66 53 19 22 225 85 76 . 48 23 42 42 58 101 91 . 147 47 . 152 1041 Absorbed by Shields 69 | . . . . . . . . . . . . . . . . . . . . . . . . . . . . . . 69 Core Remaining (%) 76 | 100 . 86 . . . 81 . . . 67 . . . 54 . . . 75 . 93 . . . 74 100 . . 86 . 25 Volleys Fired 815 | 1 39 . 24 1 . 31 39 60 . 27 17 17 22 16 29 41 . 44 20 22 18 64 23 75 1 36 68 5 75 . Largest 2 | 2 2 . 2 2 . 2 2 2 . 2 2 2 2 1 2 2 . 2 2 2 2 2 2 2 1 2 2 2 2 . Hottest 136 | 40 40 . 46 46 . 46 136 136 . 122 94 75 69 69 56 66 . 66 66 66 66 66 66 61 40 68 68 68 70 . Shots Fired 1350 | 2 78 . 48 2 . 58 75 118 . 37 31 18 25 16 33 51 . 61 40 33 27 108 43 137 1 52 129 11 115 1 Gun 972 | 2 78 . 48 2 . 54 . 66 . 22 27 5 9 . 8 23 . 44 40 22 20 89 40 125 . 33 119 10 85 1 Cannon 130 | . . . . . . . 72 50 . . . 1 3 4 . . . . . . . . . . . . . . . . Launcher 52 | . . . . . . 4 3 2 . 15 4 6 . 5 7 1 . . . 3 . . . . . . . . 2 . Special 196 | . . . . . . . . . . . . 6 13 7 18 27 . 17 . 8 7 19 3 12 1 19 10 1 28 . Kinetic 871 | 2 78 . 48 2 . 54 . . . 1 13 5 9 . 8 23 . 44 40 22 20 89 40 125 . 33 119 10 85 1 Thermal 224 | . . . . . . . 72 116 . 21 14 1 . . . . . . . . . . . . . . . . . . Explosive 52 | . . . . . . 4 3 2 . 15 4 6 . 5 7 1 . . . 3 . . . . . . . . 2 . Electromagnetic 7 | . . . . . . . . . . . . . 3 4 . . . . . . . . . . . . . . . . Robot Hit Streak 41 | 2 11 . 19 2 . 15 20 41 . 18 36 8 15 6 14 7 . 7 4 7 7 28 9 40 14 8 36 3 15 . Robot Miss Streak 5 | . 3 . 3 1 . 1 3 2 . 2 2 1 3 1 4 4 . 3 4 2 3 5 3 2 . 3 1 1 3 . Penetration Max 1 | . . . . . . . . . . . . . 1 . . 1 . . 1 1 1 1 1 1 . 1 1 1 1 . Secondary Targets 5 | . . . . . . 1 . . . 1 . . . . . . . . . 1 . . . 1 . . . . 1 . Max Gunslinging Chain 1 | . . . . . . 1 . . . 1 . . . . . . . . . 1 . . . 1 . . . . 1 . Shots Hit Robots 1088 | 2 53 . 37 1 . 47 54 88 . 39 42 22 25 27 31 44 . 36 20 23 19 96 31 120 1 36 105 7 82 . Core Hits 502 | 2 25 . 22 3 . 22 30 38 . 40 15 17 13 13 22 22 . 9 11 13 4 27 11 38 . 9 56 5 34 1 Critical Hits 56 | . . . 1 . . . 12 . . . . 1 . 1 . . . 2 3 4 3 6 2 3 . . 12 2 4 . Critical Kills 24 | . . . 1 . . . 7 . . . . . . . . . . 1 2 2 . 2 1 1 . . 5 1 1 . Critical Parts Destroyed 31 | . . . . . . . 5 . . . . 1 . 1 . . . 1 1 1 3 4 1 2 . . 7 1 3 . Melee Attacks 163 | . . . . . . . 1 . . 15 19 14 14 24 7 18 . 4 . 9 1 14 . . . . . . 19 4 Impact . | . . . . . . . . . . . . . . . . . . . . . . . . . . . . . . . Slashing 161 | . . . . . . . 1 . . 15 17 14 14 24 7 18 . 4 . 9 1 14 . . . . . . 19 4 Piercing . | . . . . . . . . . . . . . . . . . . . . . . . . . . . . . . . Sneak Attacks 13 | . . . . . . . . . . . 4 1 1 . . . . . . 2 . . . . . . . . 5 . Combat Hostiles 6 | . . . . . . . . . . . . 1 . . . . . . . 1 . . . . . . . . 4 . Follow-up Attacks . | . . . . . . . . . . . . . . . . . . . . . . . . . . . . . . . Damage Inflicted 27101 | 24 665 16 613 139 . 1138 1437 1907 . 2376 1328 1414 461 1150 853 1217 . 538 542 744 305 2415 1081 1189 . 621 1683 307 2935 3 Guns 13651 | 24 654 . 573 12 . 607 . 823 . 324 383 51 131 . 190 340 . 538 542 359 192 1263 1081 1189 . 615 1683 247 1830 . Cannons 2195 | . . . . . . . 1150 848 . . . 25 93 79 . . . . . . . . . . . . . . . . Explosions 4668 | . . . . 127 . 499 287 236 . 1041 319 477 112 381 508 168 . . . 154 . . . . . . . . 359 . Melee 6313 | . . . . . . . . . . 1011 626 861 125 690 155 709 . . . 231 30 1152 . . . . . . 723 . Ramming 274 | . 11 16 40 . . 32 . . . . . . . . . . . . . . 83 . . . . 6 . 60 23 3 Kinetic 12295 | 24 654 . 573 12 . 607 . . . . 174 51 131 . 190 340 . 538 542 359 192 1263 1081 1189 . 615 1683 247 1830 . Thermal 3618 | . . . . 127 . . 1150 1671 . 324 209 25 112 . . . . . . . . . . . . . . . . . Explosive 4429 | . . . . . . 499 287 236 . 1041 319 477 . 381 508 168 . . . 154 . . . . . . . . 359 . Electromagnetic 172 | . . . . . . . . . . . . . 93 79 . . . . . . . . . . . . . . . . Impact . | . . . . . . . . . . . . . . . . . . . . . . . . . . . . . . . Slashing 6313 | . . . . . . . . . . 1011 626 861 125 690 155 709 . . . 231 30 1152 . . . . . . 723 . Piercing . | . . . . . . . . . . . . . . . . . . . . . . . . . . . . . . . Highest Corruption 17 | . 1 1 1 1 1 1 . . . . 2 2 4 4 . . . . 2 2 . 1 4 4 . 6 6 7 13 17 Average Corruption 3 | . 1 1 1 1 1 1 . . . . 2 2 2 4 . . . . 1 2 . 1 2 4 . 5 6 6 7 13 Corruption Purged . | . . . . . . . . . . . . . . . . . . . . . . . . . . . . . . . Effects 288 | . 9 . . 4 . 2 . . . . 2 11 17 33 . . . . 2 15 . 2 8 22 . 12 45 18 67 19 Message Errors 62 | . 3 . . 4 . 1 . . . . . 3 5 5 . . . . . 5 . 1 1 1 . 1 13 7 7 5 Matter Fused 46 | . . . . . . . . . . . . . 2 7 . . . . . . . . 2 6 . 4 8 1 14 2 Heat Flow Errors 39 | . . . . . . . . . . . . 2 2 6 . . . . . 4 . . 1 8 . 2 4 3 4 3 Energy Discharges 46 | . 1 . . . . 1 . . . . . 2 5 6 . . . . 1 5 . . 2 4 . . 4 1 13 1 Parts Rejected 1 | . . . . . . . . . . . . . . . . . . . . . . . . . . . . . 1 . Data Loss (minor) 41 | . 4 . . . . . . . . . . 4 3 6 . . . . 1 1 . . 2 1 . 2 8 2 5 2 Data Loss (major) 6 | . . . . . . . . . . . . . . . . . . . . . . . . . . 1 . 1 4 . Misfires 8 | . . . . . . . . . . . . . . . . . . . . . . . . . . . 4 2 1 1 Misdirections 6 | . . . . . . . . . . . . . . . . . . . . . . . . . . . . . 3 3 Targeting Errors 30 | . 1 . . . . . . . . . 2 . . 3 . . . . . . . 1 . 2 . 1 4 1 13 2 Weapon Failures 3 | . . . . . . . . . . . . . . . . . . . . . . . . . . 1 . . 2 . Overload Shots . | . . . . . . . . . . . . . . . . . . . . . . . . . . . . . . . Overflow Damage 722 | . . . 1 . . . 22 39 . 202 73 22 55 4 11 . . . . 3 14 188 . . . . . 18 70 . Projectiles 61 | . . . . . . . 22 39 . . . . . . . . . . . . . . . . . . . . . . Explosions 106 | . . . . . . . . . . 64 3 . . 4 6 . . . . 3 . . . . . . . . 26 . Melee 555 | . . . 1 . . . . . . 138 70 22 55 . 5 . . . . . 14 188 . . . . . 18 44 . Knockbacks 2 | . . . . . . . . . . . . . . . . . . . . . 1 . . . . . . 1 . . Impact 2 | . . . . . . . . . . . . . . . . . . . . . 1 . . . . . . 1 . . Kinetic . | . . . . . . . . . . . . . . . . . . . . . . . . . . . . . . . Secondary . | . . . . . . . . . . . . . . . . . . . . . . . . . . . . . . . Self-Inflicted Damage 345 | . . . . 40 . 48 . . . 137 . 29 43 23 25 . . . . . . . . . . . . . . . Shots 10 | . . . . 1 . 1 . . . 4 . 1 1 1 1 . . . . . . . . . . . . . . . Rammed 25 | . 3 2 3 . . 2 2 . . . . . . . . . . . . . 5 . . . . 1 . 3 2 2 Targets Rammed 25 | . 3 2 3 . . 2 2 . . . . . . . . . . . . . 5 . . . . 1 . 3 2 2 Kicked . | . . . . . . . . . . . . . . . . . . . . . . . . . . . . . . . Crushed . | . . . . . . . . . . . . . . . . . . . . . . . . . . . . . . . Highest Temperature 322 | . 2 . 6 8 . 16 306 201 . 9 . 226 217 322 69 54 . 18 18 261 33 44 259 260 13 224 234 243 306 308 Average Temperature 60 | . 2 . 3 6 . 6 97 68 . 9 . 61 51 89 20 14 . 6 8 86 10 16 106 81 13 48 64 76 69 134 Received Heat Transfer 2421 | . 132 . 51 . . 306 207 288 . 99 45 81 21 198 171 99 . 54 33 81 93 81 9 174 . 54 45 9 72 18 Effects 2 | . . . . . . . . . . . . . . . . . . . . . . . . . . . . . 2 . Energy Bleed 2 | . . . . . . . . . . . . . . . . . . . . . . . . . . . . . 2 . Siege Activations . | . . . . . . . . . . . . . . . . . . . . . . . . . . . . . . . Robots Corrupted . | . . . . . . . . . . . . . . . . . . . . . . . . . . . . . . . Combat Hostiles . | . . . . . . . . . . . . . . . . . . . . . . . . . . . . . . . Parts Fried 3 | . . . . . . . . . . . . . . . . . . . . . . . 3 . . . . . . . Impact Corruptions 3 | . . . 1 . . . . . . . . . . . . . . . . . 1 . . . . . . 1 . . Robots Melted 3 | . . . . . . . . 3 . . . . . . . . . . . . . . . . . . . . . . Combat Hostiles 2 | . . . . . . . . 2 . . . . . . . . . . . . . . . . . . . . . . Parts Melted 10 | . . . . . . . . 7 . . . . . . . 1 . 1 1 . . . . . . . . . . . Heat Transferred 6799 | . . . . 150 . . 2072 3293 . 703 444 37 100 . . . . . . . . . . . . . . . . . Parts Sabotaged . | . . . . . . . . . . . . . . . . . . . . . . . . . . . . . . . Parts Stolen . | . . . . . . . . . . . . . . . . . . . . . . . . . . . . . . . Parts Stripped . | . . . . . . . . . . . . . . . . . . . . . . . . . . . . . . . Power Chain Reactions 1 | . . . . . . . . . . . . . 1 . . . . . . . . . . . . . . . . . Missiles Intercepted . | . . . . . . . . . . . . . . . . . . . . . . . . . . . . . . . Alert | -11 -10 -10 -9 -9 -9 -8 -8 -8 -8 -8 -7 -7 -7 -7 -6 -6 -6 -6 -5 -5 -4 -4 -4 -4 -3 -2 -2 -2 -1 -1 ------- Run | Scr Mat Min Mat Min Exi Min Mat Gar Mat Gar Fac Gar Fac Gar Fac Gar Fac Gar Fac Gar Fac Gar Fac Gar Res Res Gar Res Acc Com Peak Influence 899 | 5 207 36 227 175 . 157 356 899 460 772 485 540 345 273 143 335 175 244 143 384 405 497 333 143 . 138 219 123 184 37 Average Influence 198 | 1 82 36 121 156 . 39 190 605 441 560 400 363 171 157 99 164 175 171 87 230 192 394 217 55 . 15 102 64 49 7 Maximum Alert Level 3 | . 1 . 1 . . . 1 3 2 3 2 2 1 1 . 1 . 1 . 1 2 2 1 . . . 1 . . . Low Security (%) 60 | 100 96 100 78 100 . 100 35 8 . . . . 73 52 100 59 100 71 100 45 25 . 35 100 100 100 87 100 100 100 Level 1 26 | . 3 . 21 . . . 64 6 . 28 33 63 26 47 . 40 . 28 . 54 61 58 64 . . . 12 . . . Level 2 10 | . . . . . . . . 57 100 46 66 36 . . . . . . . . 12 41 . . . . . . . . Level 3 2 | . . . . . . . . 27 . 25 . . . . . . . . . . . . . . . . . . . . Level 4 . | . . . . . . . . . . . . . . . . . . . . . . . . . . . . . . . Level 5 . | . . . . . . . . . . . . . . . . . . . . . . . . . . . . . . . High Security . | . . . . . . . . . . . . . . . . . . . . . . . . . . . . . . . Max Security . | . . . . . . . . . . . . . . . . . . . . . . . . . . . . . . . Squads Dispatched 48 | . 2 . 2 . . . 3 . . . 1 . 3 . 9 . . . 2 . 1 . 4 . . 3 . 1 15 2 Investigation 10 | . 1 . 2 . . . 2 . . . . . 2 . . . . . . . . . . . . . . . 2 1 Extermination 11 | . . . . . . . . . . . 1 . 1 . 1 . . . 1 . . . 1 . . 1 . 1 3 1 Reinforcement 14 | . 1 . . . . . 1 . . . . . . . 5 . . . . . . . 1 . . 2 . . 4 . Assault 2 | . . . . . . . . . . . . . . . . . . . . . 1 . 1 . . . . . . . Garrison 11 | . . . . . . . . . . . . . . . 3 . . . 1 . . . 1 . . . . . 6 . Intercept . | . . . . . . . . . . . . . . . . . . . . . . . . . . . . . . . Construction Impeded 6 | . . . . . . . . . . . . . . . 2 . . . . . . . 1 . . 1 . . 2 . Haulers Reinforced 3 | . . . . . . . . . . . . . . . 2 . . . . . . . . . . . . . 1 . Alert ID Control Effect 145 | . . . . . . . . . . . . . . 2 5 7 . 11 . 8 1 10 7 12 . 14 25 12 28 3 Stealth | -11 -10 -10 -9 -9 -9 -8 -8 -8 -8 -8 -7 -7 -7 -7 -6 -6 -6 -6 -5 -5 -4 -4 -4 -4 -3 -2 -2 -2 -1 -1 --------- Run | Scr Mat Min Mat Min Exi Min Mat Gar Mat Gar Fac Gar Fac Gar Fac Gar Fac Gar Fac Gar Fac Gar Fac Gar Res Res Gar Res Acc Com Distress Signals 17 | . 2 . . . . . 3 . . . . . . . 2 . . . . . . . . . . . . 3 4 3 Communications Jammed . | . . . . . . . . . . . . . . . . . . . . . . . . . . . . . . . Distress Signals . | . . . . . . . . . . . . . . . . . . . . . . . . . . . . . . . Times Spotted 485 | . 26 . 16 . . 11 21 17 1 18 8 17 11 15 18 25 . 23 5 17 10 28 9 26 . 19 35 16 70 23 Peak Tracking Total 17 | . 4 . 7 . . 6 6 4 1 5 3 6 3 4 6 4 . 9 2 3 5 4 4 6 . 6 5 5 5 17 Tactical Retreats 21 | . . . . . . 2 1 2 . . . 3 . 1 . 1 . . . 1 1 2 . 1 . 1 1 1 3 . Traps | -11 -10 -10 -9 -9 -9 -8 -8 -8 -8 -8 -7 -7 -7 -7 -6 -6 -6 -6 -5 -5 -4 -4 -4 -4 -3 -2 -2 -2 -1 -1 ------- Run | Scr Mat Min Mat Min Exi Min Mat Gar Mat Gar Fac Gar Fac Gar Fac Gar Fac Gar Fac Gar Fac Gar Fac Gar Res Res Gar Res Acc Com Traps Triggered 63 | . 1 . . . . . . 1 . 2 1 3 . 1 . 2 . 7 2 15 . 6 1 3 . 2 12 . . 4 Indirectly . | . . . . . . . . . . . . . . . . . . . . . . . . . . . . . . . Trap Hack Attempts . | . . . . . . . . . . . . . . . . . . . . . . . . . . . . . . . Triggered . | . . . . . . . . . . . . . . . . . . . . . . . . . . . . . . . Disarmed . | . . . . . . . . . . . . . . . . . . . . . . . . . . . . . . . Reprogrammed . | . . . . . . . . . . . . . . . . . . . . . . . . . . . . . . . Reused . | . . . . . . . . . . . . . . . . . . . . . . . . . . . . . . . Traps Extracted . | . . . . . . . . . . . . . . . . . . . . . . . . . . . . . . . Installed . | . . . . . . . . . . . . . . . . . . . . . . . . . . . . . . . Triggered 1 | . . . . . . . . . . . . . . . . . . . . . . . . . . . . . . 1 Machines | -11 -10 -10 -9 -9 -9 -8 -8 -8 -8 -8 -7 -7 -7 -7 -6 -6 -6 -6 -5 -5 -4 -4 -4 -4 -3 -2 -2 -2 -1 -1 ---------- Run | Scr Mat Min Mat Min Exi Min Mat Gar Mat Gar Fac Gar Fac Gar Fac Gar Fac Gar Fac Gar Fac Gar Fac Gar Res Res Gar Res Acc Com Machines Disabled 43 | . . . . 3 . . 4 4 . 1 . 2 2 2 . 4 . 3 2 3 2 3 1 1 . 2 3 . 1 . Max in Single Turn 3 | . . . . 3 . . 2 1 . 1 . 1 2 1 . 1 . 1 1 1 1 1 . 1 . . 1 . 1 . Garrison Access 3 | . . . . . . . . . . . . . . . . . . . . . 1 . 1 . 1 . . . . . Garrison Relay 26 | . . . . . . . . 4 . 1 . 1 . 2 . 4 . 3 . 3 . 3 . 2 . . 3 . . . Energy Cycler 1 | . . . . . . . . . . . . . . . . . . . . . . . . . . . . . 1 . Machines Sabotaged . | . . . . . . . . . . . . . . . . . . . . . . . . . . . . . . . Garrisons Compromised . | . . . . . . . . . . . . . . . . . . . . . . . . . . . . . . . Overloaded Fab Kills . | . . . . . . . . . . . . . . . . . . . . . . . . . . . . . . . Fab Network Shutdowns 1 | . . . . . . . . . . . . . . . . . . . . . 1 . . . . . . . . . Hacking | -11 -10 -10 -9 -9 -9 -8 -8 -8 -8 -8 -7 -7 -7 -7 -6 -6 -6 -6 -5 -5 -4 -4 -4 -4 -3 -2 -2 -2 -1 -1 --------- Run | Scr Mat Min Mat Min Exi Min Mat Gar Mat Gar Fac Gar Fac Gar Fac Gar Fac Gar Fac Gar Fac Gar Fac Gar Res Res Gar Res Acc Com Machines Accessed 48 | . 8 . 4 . 1 . 8 . 3 . 1 . 8 . 2 . 1 . 2 . 2 . 1 . 1 2 . . 4 . Terminals 26 | . 7 . 3 . . . 5 . 1 . . . 6 . . . . . 1 . . . . . . 1 . . 2 . Fabricators 3 | . . . . . . . . . . . . . 1 . 1 . . . . . 1 . . . . . . . . . Repair Stations . | . . . . . . . . . . . . . . . . . . . . . . . . . . . . . . . Recycling Units 4 | . 1 . 1 . . . 2 . . . . . . . . . . . . . . . . . . . . . . . Scanalyzers 1 | . . . . . . . . . 1 . . . . . . . . . . . . . . . . . . . . . Garrison Access 13 | . . . . . . . 1 . 1 . 1 . 1 . 1 . 1 . 1 . 1 . 1 . 1 1 . . 2 . Total Hacks 123 | . 28 . 18 . 1 . 18 . 5 . 1 . 27 . 4 . 1 . 3 . 3 . 1 . 2 2 . . 9 . Successful 77 | . 15 . 9 . 1 . 12 . 5 . 1 . 16 . 4 . 1 . 2 . 3 . 1 . 2 1 . . 4 . Failed 46 | . 13 . 9 . . . 6 . . . . . 11 . . . . . 1 . . . . . . 1 . . 5 . Catastrophic 7 | . 2 . . . . . 1 . . . . . 3 . . . . . . . . . . . . . . . 1 . Database Lockouts . | . . . . . . . . . . . . . . . . . . . . . . . . . . . . . . . Manual 71 | . 20 . 9 . . . 14 . 2 . . . 20 . . . . . . . . . . . . . . . 6 . Terminals 84 | . 26 . 15 . . . 13 . 2 . . . 21 . . . . . 2 . . . . . . 1 . . 4 . Fabricators 10 | . . . . . . . . . . . . . 5 . 3 . . . . . 2 . . . . . . . . . Repair Stations . | . . . . . . . . . . . . . . . . . . . . . . . . . . . . . . . Recycling Units 9 | . 2 . 3 . . . 4 . . . . . . . . . . . . . . . . . . . . . . . Scanalyzers 2 | . . . . . . . . . 2 . . . . . . . . . . . . . . . . . . . . . Garrison Access 17 | . . . . . . . 1 . 1 . 1 . 1 . 1 . 1 . 1 . 1 . 1 . 2 1 . . 5 . Terminal Hacks 24 | . 8 . 5 . 1 . 4 . 1 . . . 4 . . . . . 1 . . . . . . . . . . . Record 1 | . . . . . 1 . . . . . . . . . . . . . . . . . . . . . . . . . Part Schematic 2 | . 1 . . . . . . . . . . . 1 . . . . . . . . . . . . . . . . . Robot Analysis 2 | . 2 . . . . . . . . . . . . . . . . . . . . . . . . . . . . . Prototype ID Bank 5 | . 3 . 1 . . . 1 . . . . . . . . . . . . . . . . . . . . . . . Branch Access Points 1 | . . . 1 . . . . . . . . . . . . . . . . . . . . . . . . . . . Terminal Index 5 | . 1 . 1 . . . 1 . 1 . . . 1 . . . . . . . . . . . . . . . . . Fabricator Index 1 | . . . . . . . . . . . . . 1 . . . . . . . . . . . . . . . . . Locate Traps 3 | . . . 1 . . . 1 . . . . . . . . . . . 1 . . . . . . . . . . . Recall Investigation 1 | . . . 1 . . . . . . . . . . . . . . . . . . . . . . . . . . . Hauler Manifests 1 | . 1 . . . . . . . . . . . . . . . . . . . . . . . . . . . . . Zone Layout 2 | . . . . . . . 1 . . . . . 1 . . . . . . . . . . . . . . . . . Fabricator Hacks 8 | . . . . . . . . . . . . . 3 . 3 . . . . . 2 . . . . . . . . . Load Schematic 2 | . . . . . . . . . . . . . 1 . 1 . . . . . . . . . . . . . . . Build 6 | . . . . . . . . . . . . . 2 . 2 . . . . . 2 . . . . . . . . . Repair Station Hacks . | . . . . . . . . . . . . . . . . . . . . . . . . . . . . . . . Recycling Unit Hacks 1 | . 1 . . . . . . . . . . . . . . . . . . . . . . . . . . . . . Retrieve Components 1 | . 1 . . . . . . . . . . . . . . . . . . . . . . . . . . . . . Scanalyzer 2 | . . . . . . . . . 2 . . . . . . . . . . . . . . . . . . . . . Insert Component 1 | . . . . . . . . . 1 . . . . . . . . . . . . . . . . . . . . . Analyze 1 | . . . . . . . . . 1 . . . . . . . . . . . . . . . . . . . . . Garrison Access Hacks 14 | . . . . . . . 1 . 1 . 1 . 1 . 1 . 1 . 1 . 1 . 1 . 2 1 . . 2 . Unlock Access 10 | . . . . . . . 1 . 1 . 1 . 1 . 1 . 1 . 1 . 1 . 1 . . 1 . . . . Seal Access 1 | . . . . . . . . . . . . . . . . . . . . . . . . . 1 . . . . . Coupler Status 3 | . . . . . . . . . . . . . . . . . . . . . . . . . 1 . . . 2 . Unauthorized Hacks 28 | . 6 . 4 . . . 7 . 1 . . . 8 . . . . . . . . . . . . . . . 2 . Terminals 19 | . 5 . 3 . . . 3 . 1 . . . 7 . . . . . . . . . . . . . . . . . Track 1 | . . . . . . . . . . . . . 1 . . . . . . . . . . . . . . . . . Botnet 17 | . 5 . 3 . . . 3 . 1 . . . 5 . . . . . . . . . . . . . . . . . Operators 1 | . . . . . . . . . . . . . 1 . . . . . . . . . . . . . . . . . Fabricators 1 | . . . . . . . . . . . . . 1 . . . . . . . . . . . . . . . . . Prioritize 1 | . . . . . . . . . . . . . 1 . . . . . . . . . . . . . . . . . Repair Stations . | . . . . . . . . . . . . . . . . . . . . . . . . . . . . . . . Recycling Units 6 | . 1 . 1 . . . 4 . . . . . . . . . . . . . . . . . . . . . . . Recyclers 1 | . . . . . . . 1 . . . . . . . . . . . . . . . . . . . . . . . Mask 1 | . . . . . . . 1 . . . . . . . . . . . . . . . . . . . . . . . Tunnel 4 | . 1 . 1 . . . 2 . . . . . . . . . . . . . . . . . . . . . . . Scanalyzers . | . . . . . . . . . . . . . . . . . . . . . . . . . . . . . . . Garrison Access 2 | . . . . . . . . . . . . . . . . . . . . . . . . . . . . . 2 . Eject 2 | . . . . . . . . . . . . . . . . . . . . . . . . . . . . . 2 . Data Cores Recovered 1 | . 1 . . . . . . . . . . . . . . . . . . . . . . . . . . . . . Used . | . . . . . . . . . . . . . . . . . . . . . . . . . . . . . . . Hacking Detections 37 | . 7 . 3 . . . 5 . 3 . . . 7 . 1 . . . 2 . 2 . . . 1 2 . . 4 . Full Trace Events 4 | . 1 . 1 . . . . . . . . . 2 . . . . . . . . . . . . . . . . . Feedback Events 2 | . 1 . 1 . . . . . . . . . . . . . . . . . . . . . . . . . . . Corruption 2 | . 1 . 1 . . . . . . . . . . . . . . . . . . . . . . . . . . . Feedback Blocked . | . . . . . . . . . . . . . . . . . . . . . . . . . . . . . . . Robot Schematics Acquired . | . . . . . . . . . . . . . . . . . . . . . . . . . . . . . . . Robots Built . | . . . . . . . . . . . . . . . . . . . . . . . . . . . . . . . Matter . | . . . . . . . . . . . . . . . . . . . . . . . . . . . . . . . Time . | . . . . . . . . . . . . . . . . . . . . . . . . . . . . . . . Total Robot Build Rating . | . . . . . . . . . . . . . . . . . . . . . . . . . . . . . . . Part Schematics Acquired 3 | . 1 . . . . . . . 1 . . . 1 . . . . . . . . . . . . . . . . . Parts Built 6 | . . . . . . . . . . . . . 1 . 1 . . . . . 4 . . . . . . . . . Matter 920 | . . . . . . . . . . . . . 204 . 204 . . . . . 512 . . . . . . . . . Time 408 | . . . . . . . . . . . . . 50 . 102 . . . . . 256 . . . . . . . . . Total Part Build Rating 34 | . . . . . . . . . . . . . 1 . 1 . . . . . 32 . . . . . . . . . Parts Repaired . | . . . . . . . . . . . . . . . . . . . . . . . . . . . . . . . Time . | . . . . . . . . . . . . . . . . . . . . . . . . . . . . . . . Parts Recycled . | . . . . . . . . . . . . . . . . . . . . . . . . . . . . . . . Recycled Matter . | . . . . . . . . . . . . . . . . . . . . . . . . . . . . . . . Retrieved Matter . | . . . . . . . . . . . . . . . . . . . . . . . . . . . . . . . Retrieved Components 1 | . 1 . . . . . . . . . . . . . . . . . . . . . . . . . . . . . Parts Scanalyzed 1 | . . . . . . . . . 1 . . . . . . . . . . . . . . . . . . . . . Part Schematics Acquired 1 | . . . . . . . . . 1 . . . . . . . . . . . . . . . . . . . . . Parts Damaged . | . . . . . . . . . . . . . . . . . . . . . . . . . . . . . . . Bothacking | -11 -10 -10 -9 -9 -9 -8 -8 -8 -8 -8 -7 -7 -7 -7 -6 -6 -6 -6 -5 -5 -4 -4 -4 -4 -3 -2 -2 -2 -1 -1 ------------ Run | Scr Mat Min Mat Min Exi Min Mat Gar Mat Gar Fac Gar Fac Gar Fac Gar Fac Gar Fac Gar Fac Gar Fac Gar Res Res Gar Res Acc Com Used RIF Installer 10 | . . . . . . . . 1 . 1 . 1 . 1 . 1 . 1 . 1 . 1 . 1 . . 1 . . . Robot Detection 1 | . . . . . . . . . . 1 . . . . . . . . . . . . . . . . . . . . Patrol Navigation 1 | . . . . . . . . . . . . 1 . . . . . . . . . . . . . . . . . . Alert ID Control 1 | . . . . . . . . . . . . . . 1 . . . . . . . . . . . . . . . . Structural Interface 1 | . . . . . . . . . . . . . . . . . . . . . . . . . . . 1 . . . Program Shield 1 | . . . . . . . . . . . . . . . . . . . . . . . . 1 . . . . . . Autooverride 3 | . . . . . . . . . . . . . . . . 1 . 1 . 1 . . . . . . . . . . Crosswire 1 | . . . . . . . . . . . . . . . . . . . . . . 1 . . . . . . . . Robots Hacked 239 | . . . . . . . . . . . 2 6 8 6 12 15 . 11 1 11 4 13 9 16 1 21 26 9 59 9 Non-combat 10 | . . . . . . . . . . . . . 3 . 1 . . . . . . . 1 . 1 3 . 1 . . Combat 229 | . . . . . . . . . . . 2 6 5 6 11 15 . 11 1 11 4 13 8 16 . 18 26 8 59 9 Autooverrided 148 | . . . . . . . . . . . . . . . . . . 1 1 5 3 10 8 14 . 14 22 8 53 9 Robot Hacks Applied 133 | . . . . . . . . . . . 2 6 9 6 13 15 . 12 . 6 6 13 3 8 1 9 7 1 16 . parse_system 1 | . . . . . . . . . . . . . . . . . . 1 . . . . . . . . . . . . drop_inventory 4 | . . . . . . . . . . . . . 1 . . . . . . . . . 1 . 1 1 . . . . ignore_parts 2 | . . . . . . . . . . . . . 1 . . . . . . . . . . . . 1 . . . . locate_traps 1 | . . . . . . . . . . . . . . . . . . . . . . . . . . 1 . . . . map_route 2 | . . . . . . . . . . . . . 1 . . . . . . . . . . . . . . 1 . . find_garrison 3 | . . . . . . . . . . . . . 1 . . . . . . . 1 . . . . 1 . . . . scatter_targeting 5 | . . . . . . . . . . . . 1 1 . 1 . . . . . . 1 . . . . 1 . . . spike_heat 5 | . . . . . . . . . . . . . 1 . . 1 . 1 . . 1 1 . . . . . . . . amplify_resonance 4 | . . . . . . . . . . . . . . . 1 2 . 1 . . . . . . . . . . . . wipe_record 2 | . . . . . . . . . . . . 1 . . . . . . . . . 1 . . . . . . . . disable_weapons 3 | . . . . . . . . . . . . . . 1 . 1 . . . . . . . . . . 1 . . . go_dormant 1 | . . . . . . . . . . . . . . . . . . . . . . 1 . . . . . . . . overwrite_iff 18 | . . . . . . . . . . . . 2 . 2 3 1 . 5 . 1 2 1 . 1 . . . . . . streamctrl_high 3 | . . . . . . . . . . . 1 . . . 2 . . . . . . . . . . . . . . . formatsys_low 1 | . . . . . . . . . . . . . . . 1 . . . . . . . . . . . . . . . formatsys_high 78 | . . . . . . . . . . . 1 2 3 3 5 10 . 4 . 5 2 8 2 7 . 5 5 . 16 . Relay Couplers Released 122 | . . . . . . . . 15 . 5 . 5 . 8 . 17 . 13 . 12 2 11 1 10 . . 10 3 10 . Ejected 7 | . . . . . . . . . . . . . . . . . . . . . . . . . . . . . 7 . Machine Destruction 109 | . . . . . . . . 15 . 5 . 5 . 8 . 17 . 13 . 12 2 11 1 10 . . 10 . . . Programmers 6 | . . . . . . . . . . . . . . . . . . . . . . . . . . . . 3 3 . Attached 76 | . . . . . . . . . . . 4 2 4 2 4 9 . 4 1 3 4 11 4 3 2 3 6 1 8 1 Crosswired 24 | . . . . . . . . . . . . . . . . . . . . . . 12 . 5 . . 4 . 3 . Robots Rewired 6 | . . . . . . . . . . . . . . . . . . . . . . . . . . . 6 . . . Allies Hacked 4 | . . . . . . . . . . . . . . . 1 . . . . . . 1 2 . . . . . . . Hacks Repelled . | . . . . . . . . . . . . . . . . . . . . . . . . . . . . . . . Allies | -11 -10 -10 -9 -9 -9 -8 -8 -8 -8 -8 -7 -7 -7 -7 -6 -6 -6 -6 -5 -5 -4 -4 -4 -4 -3 -2 -2 -2 -1 -1 -------- Run | Scr Mat Min Mat Min Exi Min Mat Gar Mat Gar Fac Gar Fac Gar Fac Gar Fac Gar Fac Gar Fac Gar Fac Gar Res Res Gar Res Acc Com Total Allies 223 | . . . . . . . . . . . 2 4 3 5 11 11 . 9 1 11 4 12 8 16 . 18 32 8 59 9 Largest Group 9 | . . . . . . . . . . . 2 3 2 3 3 4 3 4 1 4 3 6 3 7 1 7 9 7 9 5 Highest-Rated Group 644 | . . . . . . . . . . . 60 77 64 56 95 134 105 157 29 156 161 276 150 340 47 302 644 357 529 290 Highest-Rated Ally 147 | . . . . . . . . . . . 30 32 32 32 34 47 47 81 29 49 58 58 56 58 47 69 147 69 69 69 Total Orders 12 | . . . . . . . . . . . 1 1 . . 2 4 . 2 . 2 . . . . . . . . . . STAY 3 | . . . . . . . . . . . . 1 . . . 1 . . . 1 . . . . . . . . . . GOTO 3 | . . . . . . . . . . . 1 . . . . 1 . 1 . . . . . . . . . . . . ROAM 1 | . . . . . . . . . . . . . . . 1 . . . . . . . . . . . . . . . FOLLOW 4 | . . . . . . . . . . . . . . . . 2 . 1 . 1 . . . . . . . . . . AID 1 | . . . . . . . . . . . . . . . 1 . . . . . . . . . . . . . . . Ally Attacks 919 | . . . . . . . . . . . 4 24 16 15 28 45 . 79 6 46 17 89 27 71 . 45 124 72 190 21 Total Damage 30332 | . . . . . . . . . . . 69 400 457 307 977 663 . 2071 78 1161 598 3202 994 2203 . 2920 4726 2775 5945 786 Kills 159 | . . . . . . . . . . . 1 1 3 3 6 8 . 11 . 8 1 10 9 12 . 14 27 13 29 3 Allies Corrupted 4 | . . . . . . . . . . . . . . . . . . . . . . . 2 . . . . 1 1 . Allies Melted 1 | . . . . . . . . . . . . . . . . . . . . . . . . 1 . . . . . . Intel | -11 -10 -10 -9 -9 -9 -8 -8 -8 -8 -8 -7 -7 -7 -7 -6 -6 -6 -6 -5 -5 -4 -4 -4 -4 -3 -2 -2 -2 -1 -1 ------- Run | Scr Mat Min Mat Min Exi Min Mat Gar Mat Gar Fac Gar Fac Gar Fac Gar Fac Gar Fac Gar Fac Gar Fac Gar Res Res Gar Res Acc Com Robot Analysis Total 2 | . 2 . . . . . . . . . . . . . . . . . . . . . . . . . . . . . Derelict Logs Recovered . | . . . . . . . . . . . . . . . . . . . . . . . . . . . . . . . Drone Launches . | . . . . . . . . . . . . . . . . . . . . . . . . . . . . . . . Drone Recoveries . | . . . . . . . . . . . . . . . . . . . . . . . . . . . . . . . Exploration | -11 -10 -10 -9 -9 -9 -8 -8 -8 -8 -8 -7 -7 -7 -7 -6 -6 -6 -6 -5 -5 -4 -4 -4 -4 -3 -2 -2 -2 -1 -1 ------------- Run | Scr Mat Min Mat Min Exi Min Mat Gar Mat Gar Fac Gar Fac Gar Fac Gar Fac Gar Fac Gar Fac Gar Fac Gar Res Res Gar Res Acc Com Turns Passed 25905 | 98 1270 66 634 446 743 506 1102 1494 111 647 601 1027 1522 1403 622 1615 36 1433 533 1579 567 1357 621 793 185 847 1585 513 1649 300 Spaces Moved 10959 | 53 608 40 288 247 376 202 467 601 58 258 208 443 600 514 227 628 16 526 281 649 126 602 300 323 98 415 679 234 716 176 Core 36 | 4 . . . . . . . . . . . . . . . . . . . . . . . . . . . . . 32 Treads 7249 | 49 608 40 288 247 376 202 467 455 . 19 8 . 268 . 1 . . 25 . 559 126 602 300 323 98 415 679 234 716 144 Legs . | . . . . . . . . . . . . . . . . . . . . . . . . . . . . . . . Wheels 3674 | . . . . . . . . 146 58 239 200 443 332 514 226 628 16 501 281 90 . . . . . . . . . . Hover . | . . . . . . . . . . . . . . . . . . . . . . . . . . . . . . . Flight . | . . . . . . . . . . . . . . . . . . . . . . . . . . . . . . . Fastest Speed 50 | 50 160 160 180 180 180 200 200 190 190 190 190 190 190 210 190 200 220 190 140 190 185 165 165 165 165 165 165 185 185 50 Average Speed 190 | 151 161 160 180 180 195 200 200 204 190 198 198 191 214 210 216 213 220 208 160 199 187 173 165 165 172 175 184 185 185 160 Slowest Speed 280 | 160 180 160 180 180 200 200 200 220 190 280 265 200 265 210 260 230 220 240 200 200 200 185 165 165 185 185 185 185 185 185 Overloaded Moves . | . . . . . . . . . . . . . . . . . . . . . . . . . . . . . . . Propulsion Burnouts . | . . . . . . . . . . . . . . . . . . . . . . . . . . . . . . . Robots Hopped . | . . . . . . . . . . . . . . . . . . . . . . . . . . . . . . . Cave-ins Triggered . | . . . . . . . . . . . . . . . . . . . . . . . . . . . . . . . Exploration Rate (%) 36 | 4 78 20 33 49 67 58 49 64 11 36 6 47 19 64 10 71 1 60 10 81 7 73 10 57 4 15 78 8 27 14 Regions Visited 30 Branch Regions 5 Pre-discovered Areas 5 | . 1 . 1 . 1 . 2 . . . . . . . . . . . . . . . . . . . . . . . Known Exits Taken 11 | . . . 1 . . . 1 . 1 . 1 . 1 . 1 . 1 . 1 . 1 . 1 . . 1 . . . . Unknown Exits Taken 9 | 1 1 1 . 1 1 1 . . . . . . . . . . . . . . . . . . 1 . . 1 1 . Scrap Searched 2 | . . . . 1 . 1 . . . . . . . . . . . . . . . . . . . . . . . . Spaces Dug 40 | . . . . . . . 1 . . 16 . . 12 . 1 . . 2 . . . . . . . . . . 5 3 Terrain Destroyed 301 | . . . . 18 . 45 7 . . 57 6 18 12 30 16 . . 2 18 26 2 2 2 2 . . 6 . 29 3 Melee 23 | . . . . . . . 1 . . . . . 12 . 1 . . 1 . . . . . . . . . . 5 3 Projectile 37 | . . . . . . . . . . . . 1 . . . . . 1 18 . 2 2 2 2 . . 6 . 3 . AOE 241 | . . . . 18 . 45 6 . . 57 6 17 . 30 15 . . . . 26 . . . . . . . . 21 . Actions | -11 -10 -10 -9 -9 -9 -8 -8 -8 -8 -8 -7 -7 -7 -7 -6 -6 -6 -6 -5 -5 -4 -4 -4 -4 -3 -2 -2 -2 -1 -1 --------- Run | Scr Mat Min Mat Min Exi Min Mat Gar Mat Gar Fac Gar Fac Gar Fac Gar Fac Gar Fac Gar Fac Gar Fac Gar Res Res Gar Res Acc Com Total 14568 | 65 834 41 364 247 386 244 575 755 58 336 330 583 794 782 317 832 16 807 324 894 429 790 382 478 113 490 892 310 914 186 Wait 1477 | . 128 . 4 . . . 10 42 . 1 58 46 100 201 35 61 . 125 8 140 258 57 40 38 8 13 22 39 42 1 Move 10938 | 52 607 39 287 246 375 201 466 600 58 257 208 442 600 513 227 627 16 525 281 648 126 601 300 322 97 415 678 233 715 176 Hop . | . . . . . . . . . . . . . . . . . . . . . . . . . . . . . . . Pick Up 263 | 4 26 . 18 . 4 2 17 16 . 6 4 10 17 8 1 19 . 17 5 15 3 13 3 13 1 8 10 8 14 1 Fast Attach 60 | 6 1 . 3 . . . 3 3 . . . 1 2 2 3 6 . 4 2 2 2 5 . 1 . 1 5 2 6 . Attach 109 | 1 1 . 2 . 1 2 3 5 . 4 9 4 2 5 4 6 . 5 2 4 6 8 4 3 2 8 5 . 11 2 Detach 1 | . . . . . . . . . . . . 1 . . . . . . . . . . . . . . . . . . Swap 226 | 1 8 . 6 . 1 4 11 12 . 9 10 12 18 6 7 20 . 11 2 11 3 10 9 10 3 6 8 7 21 . Drop 240 | . 21 . 17 . 5 2 23 15 . 9 4 10 18 5 3 17 . 15 4 13 7 6 3 8 1 2 13 13 6 . Fire 815 | 1 39 . 24 1 . 31 39 60 . 27 17 17 22 16 29 41 . 44 20 22 18 64 23 75 1 36 68 5 75 . Melee 163 | . . . . . . . 1 . . 15 19 14 14 24 7 18 . 4 . 9 1 14 . . . . . . 19 4 Ram . | . . . . . . . . . . . . . . . . . . . . . . . . . . . . . . . Kick . | . . . . . . . . . . . . . . . . . . . . . . . . . . . . . . . Crush 25 | . 3 2 3 . . 2 2 . . . . . . . . . . . . . 5 . . . . 1 . 3 2 2 Escape Stasis 173 | . . . . . . . . 2 . 8 . 24 . . . 16 . 57 . 28 . 12 . 6 . . 20 . . . Rewire 78 | . . . . . . . . . . . 1 2 1 2 1 1 . . . 2 . . . 2 . . 63 . 3 . Trap . | . . . . . . . . . . . . . . . . . . . . . . . . . . . . . . . Miscellaneous . | . . . . . . . . . . . . . . . . . . . . . . . . . . . . . . . Route ------- -11/Scrapyard -10/Materials (discovered 3 exits: *Mat x2 / [*Min]) -10/Mines -9/Materials -9/Mines (discovered 2 exits: *Mat / *Exi) -9/Exiles (discovered 2 exits: [*Min x2]) -8/Mines -8/Materials (discovered 2 exits: *Fac / Gar) -8/Garrison (discovered 2 exits: *Mat x2) -8/Materials -8/Garrison -7/Factory -7/Garrison (discovered 2 exits: *Fac x2) -7/Factory -7/Garrison (discovered 3 exits: *Fac x3) -6/Factory -6/Garrison (discovered 3 exits: *Fac x3) -6/Factory -6/Garrison (discovered 2 exits: *Fac x2) -5/Factory (discovered 2 exits: *Fac / Gar) -5/Garrison (discovered 3 exits: *Fac x3) -4/Factory -4/Garrison (discovered 3 exits: *Fac x3) -4/Factory -4/Garrison (discovered 2 exits: *Res x2) -3/Research -2/Research -2/Garrison (discovered 3 exits: [*Res x3]) -2/Research -1/Access -1/Command To Epsilon Eridani History --------- Turn | Location | Event 4 | -11/Scrapyard | Discovered new exit (range 16) 99 | -11/Scrapyard | Entered Materials 308 | -10/Materials | Build established: Mutant 663 | -10/Materials | Discovered new exit (range 13) 1002 | -10/Materials | Discovered new exit (range 14) 1182 | -10/Materials | Discovered new exit (range 15) 1369 | -10/Materials | Entered Mines 1416 | -10/Mines | Discovered new exit (range 12) 1432 | -10/Mines | A weapon hastily lodged in a ceiling crevice suddenly fell to the ground 1435 | -10/Mines | Entered Materials 1435 | -9/Materials | Evolved 2 slots: Utility x2 1701 | -9/Materials | Identified exit to Mines 1800 | -9/Materials | Build established: Hauler-Mutant 2069 | -9/Materials | Entered Mines 2076 | -9/Mines | Met a Derelict bent on vengeance 2249 | -9/Mines | Discovered new exit (range 15) 2459 | -9/Mines | Discovered new exit (range 7) 2508 | -9/Mines | Deemed a non-threat by the Exiles lab entrance 2515 | -9/Mines | Entered Exiles 2544 | -9/Exiles | Discovered new exit (range 15) 2564 | -9/Exiles | Met 8R-AWN 2591 | -9/Exiles | Met EX-HEX 2694 | -9/Exiles | Met EX-DEC 2734 | -9/Exiles | Learned location of Zion (-6) 2916 | -9/Exiles | Met EX-BIN 3242 | -9/Exiles | Discovered new exit (range 10) 3258 | -9/Exiles | Entered Mines 3734 | -8/Mines | Discovered new exit (range 15) 3764 | -8/Mines | Entered Materials 3764 | -8/Materials | Evolved 2 slots: Utility x2 4231 | -8/Materials | Discovered new exit (range 15) 4846 | -8/Materials | Identified exit to Garrison 4866 | -8/Materials | Entered Garrison 4948 | -8/Garrison | Triggered checkpoint 5131 | -8/Garrison | Discovered new exit (range 9) 5245 | -8/Garrison | Triggered checkpoint 5315 | -8/Garrison | Discovered new exit (range 12) 5351 | -8/Garrison | Installed Relay Interface Framework 5408 | -8/Garrison | Triggered checkpoint 5429 | -8/Garrison | Garrison Relay disabled 5728 | -8/Garrison | Triggered checkpoint 5770 | -8/Garrison | Garrison Relay disabled 5944 | -8/Garrison | Triggered checkpoint 6051 | -8/Garrison | Garrison Relay disabled 6078 | -8/Garrison | Build established: Bothacker-Mutant 6182 | -8/Garrison | Triggered checkpoint 6264 | -8/Garrison | Garrison Relay disabled 6360 | -8/Garrison | Entered Materials 6471 | -8/Materials | Identified exit to Garrison 6471 | -8/Materials | Entered Garrison 6544 | -8/Garrison | Triggered checkpoint 6614 | -8/Garrison | Triggered checkpoint 6655 | -8/Garrison | Triggered checkpoint 6668 | -8/Garrison | Triggered checkpoint 6707 | -8/Garrison | Destroyed 12 combat bots 6871 | -8/Garrison | Discovered new exit (range 12) 6905 | -8/Garrison | Expanded RIF knowledge: Robot Detection 7013 | -8/Garrison | Garrison Relay disabled 7052 | -8/Garrison | Triggered checkpoint 7118 | -8/Garrison | Entered Factory 7118 | -7/Factory | Evolved 2 slots: Utility x2 7719 | -7/Factory | Identified exit to Garrison 7719 | -7/Factory | Entered Garrison 7868 | -7/Garrison | Triggered checkpoint 8059 | -7/Garrison | Discovered new exit (range 11) 8138 | -7/Garrison | Triggered checkpoint 8270 | -7/Garrison | Discovered new exit (range 13) 8308 | -7/Garrison | Expanded RIF knowledge: Patrol Navigation 8370 | -7/Garrison | Triggered checkpoint 8404 | -7/Garrison | Garrison Relay disabled 8653 | -7/Garrison | Triggered checkpoint 8746 | -7/Garrison | Entered Factory 9578 | -7/Factory | Fabricated Humpback (x1) 10266 | -7/Factory | Identified exit to Garrison 10268 | -7/Factory | Entered Garrison 10420 | -7/Garrison | Triggered checkpoint 10532 | -7/Garrison | Discovered new exit (range 5) 10752 | -7/Garrison | Triggered checkpoint 10870 | -7/Garrison | Discovered new exit (range 15) 11104 | -7/Garrison | Discovered new exit (range 11) 11138 | -7/Garrison | Expanded RIF knowledge: Alert ID Control 11194 | -7/Garrison | Triggered checkpoint 11262 | -7/Garrison | Garrison Relay disabled 11426 | -7/Garrison | Build established: Botlord-Mutant 11515 | -7/Garrison | Garrison Relay disabled 11671 | -7/Garrison | Entered Factory 11671 | -6/Factory | Accompanied by 1 ally 11671 | -6/Factory | Evolved 2 slots: Utility x2 12049 | -6/Factory | Garrison activated, responded to threat 12194 | -6/Factory | Fabricated Humpback (x1) 12293 | -6/Factory | Identified exit to Garrison 12293 | -6/Factory | Entered Garrison 12293 | -6/Garrison | Accompanied by 1 ally 12356 | -6/Garrison | Triggered checkpoint 12381 | -6/Garrison | Garrison Relay disabled 12528 | -6/Garrison | Triggered checkpoint 12538 | -6/Garrison | Triggered checkpoint 12692 | -6/Garrison | Discovered new exit (range 9) 12748 | -6/Garrison | Triggered checkpoint 12757 | -6/Garrison | P-60 Hacker assimilated allied Soldier 5d 12835 | -6/Garrison | Garrison Relay disabled 13018 | -6/Garrison | Triggered checkpoint 13158 | -6/Garrison | Discovered new exit (range 10) 13220 | -6/Garrison | Triggered checkpoint 13251 | -6/Garrison | Garrison Relay disabled 13338 | -6/Garrison | Triggered checkpoint 13568 | -6/Garrison | Discovered new exit (range 10) 13603 | -6/Garrison | Expanded RIF knowledge: Autooverride 13694 | -6/Garrison | Triggered checkpoint 13746 | -6/Garrison | Garrison Relay disabled 13908 | -6/Garrison | Entered Factory 13908 | -6/Factory | Accompanied by 3 allies 13944 | -6/Factory | Identified exit to Garrison 13944 | -6/Factory | Entered Garrison 13944 | -6/Garrison | Accompanied by 3 allies 14002 | -6/Garrison | Triggered checkpoint 14354 | -6/Garrison | Triggered checkpoint 14407 | -6/Garrison | Garrison Relay disabled 14494 | -6/Garrison | Spotted B-75 Beast 14552 | -6/Garrison | Spotted B-75 Beast 14552 | -6/Garrison | Spotted B-75 Beast 14562 | -6/Garrison | Assimilated Beast 5a with formatsys_high 14570 | -6/Garrison | Allies destroyed B-75 Beast 14663 | -6/Garrison | Triggered checkpoint 14694 | -6/Garrison | Triggered checkpoint 14694 | -6/Garrison | Allies destroyed B-75 Beast 14697 | -6/Garrison | Destroyed Beast 5a 14827 | -6/Garrison | Discovered new exit (range 11) 15058 | -6/Garrison | Discovered new exit (range 14) 15096 | -6/Garrison | Expanded RIF knowledge: Autooverride 15166 | -6/Garrison | Triggered checkpoint 15259 | -6/Garrison | Garrison Relay disabled 15377 | -6/Garrison | Entered Factory 15377 | -5/Factory | Evolved 2 slots: Utility x2 15467 | -5/Factory | Discovered new exit (range 9) 15833 | -5/Factory | Garrison activated, responded to threat 15910 | -5/Factory | Identified exit to Garrison 15910 | -5/Factory | Entered Garrison 15970 | -5/Garrison | Triggered checkpoint 16202 | -5/Garrison | Triggered checkpoint 16222 | -5/Garrison | Garrison Relay disabled 16410 | -5/Garrison | Triggered checkpoint 16583 | -5/Garrison | Discovered new exit (range 13) 16748 | -5/Garrison | Triggered checkpoint 16772 | -5/Garrison | Triggered checkpoint 16886 | -5/Garrison | Discovered new exit (range 10) 17034 | -5/Garrison | Discovered new exit (range 13) 17068 | -5/Garrison | Expanded RIF knowledge: Autooverride 17142 | -5/Garrison | Triggered checkpoint 17166 | -5/Garrison | Garrison Relay disabled 17350 | -5/Garrison | Triggered checkpoint 17382 | -5/Garrison | Garrison Relay disabled 17489 | -5/Garrison | Entered Factory 17489 | -4/Factory | Accompanied by 3 allies 17489 | -4/Factory | Evolved 2 slots: Utility x2 17663 | -4/Factory | Fabricated Adv. Heavy Treads (x2) 17800 | -4/Factory | Fabricated Adv. Heavy Treads (x2) 17985 | -4/Factory | Local fabrication network quarantined 18056 | -4/Factory | Identified exit to Garrison 18056 | -4/Factory | Entered Garrison 18066 | -4/Garrison | Expanded RIF knowledge: Crosswire 18120 | -4/Garrison | Triggered checkpoint 18165 | -4/Garrison | Garrison Relay disabled 18259 | -4/Garrison | Spotted B-86 Titan 18272 | -4/Garrison | Triggered checkpoint 18383 | -4/Garrison | Discovered new exit (range 15) 18438 | -4/Garrison | Triggered checkpoint 18564 | -4/Garrison | Triggered checkpoint 18587 | -4/Garrison | Triggered checkpoint 18596 | -4/Garrison | Allies destroyed B-86 Titan 18624 | -4/Garrison | Triggered checkpoint 18824 | -4/Garrison | Triggered checkpoint 18846 | -4/Garrison | Garrison Relay disabled 18891 | -4/Garrison | Discovered new exit (range 13) 19032 | -4/Garrison | Triggered checkpoint 19227 | -4/Garrison | Garrison Relay disabled 19278 | -4/Garrison | Discovered new exit (range 15) 19413 | -4/Garrison | Entered Factory 19413 | -4/Factory | Accompanied by 1 ally 19742 | -4/Factory | Garrison activated, responded to threat 20034 | -4/Factory | Identified exit to Garrison 20034 | -4/Factory | Entered Garrison 20070 | -4/Garrison | Triggered checkpoint 20114 | -4/Garrison | Garrison Relay disabled 20213 | -4/Garrison | Spotted B-86 Titan 20221 | -4/Garrison | Triggered checkpoint 20224 | -4/Garrison | Triggered checkpoint 20226 | -4/Garrison | Triggered checkpoint 20243 | -4/Garrison | Allies destroyed B-86 Titan 20248 | -4/Garrison | Triggered checkpoint 20252 | -4/Garrison | P-70 Sage assimilated allied Veteran 7i 20252 | -4/Garrison | P-70 Sage assimilated allied G-67 Veteran 20545 | -4/Garrison | Discovered new exit (range 10) 20571 | -4/Garrison | Expanded RIF knowledge: Program Shield 20618 | -4/Garrison | Triggered checkpoint 20621 | -4/Garrison | Garrison Relay disabled 20810 | -4/Garrison | Discovered new exit (range 9) 20827 | -4/Garrison | Entered Research 20827 | -3/Research | Accompanied by 1 ally 20827 | -3/Research | Evolved 2 slots: Utility x2 20911 | -3/Research | Discovered new exit (range 13) 20990 | -3/Research | Found Antimissile System 21012 | -3/Research | Entered another Research area 21012 | -2/Research | Accompanied by 1 ally 21012 | -2/Research | Evolved 2 slots: Utility x2 21062 | -2/Research | Found Spectral Analyzer 21207 | -2/Research | Spotted B-90 Cyclops 21729 | -2/Research | Found Adv. Powered Armor 21859 | -2/Research | Identified exit to Garrison 21859 | -2/Research | Entered Garrison 21859 | -2/Garrison | Accompanied by 2 allies 21882 | -2/Garrison | Triggered checkpoint 21916 | -2/Garrison | Garrison Relay disabled 22078 | -2/Garrison | Spotted B-90 Cyclops 22084 | -2/Garrison | Triggered checkpoint 22092 | -2/Garrison | Triggered checkpoint 22096 | -2/Garrison | Allies destroyed B-90 Cyclops 22096 | -2/Garrison | Triggered checkpoint 22100 | -2/Garrison | Triggered checkpoint 22272 | -2/Garrison | Discovered new exit (range 12) 22588 | -2/Garrison | Discovered new exit (range 22) 22671 | -2/Garrison | Expanded RIF knowledge: Structural Interface 22766 | -2/Garrison | Triggered checkpoint 22884 | -2/Garrison | Triggered checkpoint 22946 | -2/Garrison | Triggered checkpoint 23023 | -2/Garrison | Garrison Relay disabled 23214 | -2/Garrison | Triggered checkpoint 23250 | -2/Garrison | Garrison Relay disabled 23300 | -2/Garrison | Discovered new exit (range 22) 23444 | -2/Garrison | Entered Research 23444 | -2/Research | Accompanied by 6 allies 23855 | -2/Research | Discovered new exit (range 16) 23936 | -2/Research | Found Hvy. Reactive Plating 23940 | -2/Research | Found Hvy. Reactive Plating 23945 | -2/Research | Found Hvy. Reactive Plating 23957 | -2/Research | Entered Access 23957 | -1/Access | Evolved 2 slots: Utility x2 24072 | -1/Access | Garrison activated, responded to threat 24706 | -1/Access | Spotted B-99 Colossus 24732 | -1/Access | Garrison activated, responded to threat 25035 | -1/Access | Energy Cycler disabled 25132 | -1/Access | System corruption reached 10% 25591 | -1/Access | Discovered new exit (range 9) 25606 | -1/Access | Entered Command 25857 | -1/Command | Spotted B-99 Colossus 25883 | -1/Command | Spotted Alpha 7 25885 | -1/Command | Released all parts (22) 25895 | -1/Command | Spotted Alpha 7 25895 | -1/Command | Spotted Striker 25895 | -1/Command | Spotted Executioner 25895 | -1/Command | Spotted Executioner 25895 | -1/Command | Spotted Striker 25895 | -1/Command | Spotted Executioner 25895 | -1/Command | Spotted Executioner 25897 | -1/Command | Spotted B-99 Colossus 25903 | -1/Command | Core integrity fell below 50% 25903 | -1/Command | Discovered new exit (range 8) 25906 | *** | Escaped! Last Messages --------------- 25902_ Field strength at 76. 25902_ Triggered Stasis Trap. 25902_ A bubble of rippling energy engulfs the area. 25902_ Field strength at 94. 25903_ Knocked back. 25903_ The Access Shell folds into the floor. 25903_ EXIT=FOUND 25904_ Field strength at 22. 25904_ Penetrated by Slug. 25904_ Slug penetrates Wall. 25905_ Striker suffers critical hit. 25905_ Penetrated by Slug. 25905_ Slug penetrates Wall. 25905_ Knocked back. 25905_ Slug penetrates Wall. 25905_ Knocked back. 25905_ Slug penetrates Reinforced Barrier. 25905_ Penetrated by Slug. 25905_ Slug penetrates Wall. 25906_ Field strength at 41. Map ----- +----------------------------------------------------+ | ??????????????????????????# #?# | | ??????????????????????##### % ######### # #### | | ??????????????????????# % | | ??????????????????????# | | ??????????????????????# | | ????????????????####### | | ?????????# ######+############### | | ????????????????##### # ##????????????????????? | | ????????????????????# // #????????????????????? | | ????????????????????# *[ #????????????????????? | | ????????????????????# [%= ##???????????????????? | | ????????????????????# 7!| ^ #???????????????????? | | ????????????????????## ##???????????????????? | | ????????????????????# #???????????????????? | | ???????????????????###KEE ##???????????????????? | | ???????????????????# ^ KEE #???????????????????? | | ???????????????????# #^ ^^ ##???????????????????? | | ???????????????????## ^ #???????????????????? | | ??????????????????#### BB####?????????????????? | | ??????????????????# BB BB #?????????????????? | | ??????????????????# BB #?????????????????? | | ??????????????????# ^ #?????????????????? | | ??????????????????# #?????????????????? | | ??????????????????# #?????????????????? | | ??????????????????# "" #?????????????????? | | ??????????????????# "@ #?????????????????? | | ??????????????????# #?????????????????? | | ??????????????????# #?????????????????? | | ??????????????????# #?????????????????? | | ??????????????????# #?????????????????? | | ??????????????????# #?????????????????? | | ??????????????????###;;##;######?????????????????? | | ????????????????????###?###??????????????????????? | | ?????????????????????????????????????????????????? | | ?????????????????????????????????????????????????? | | ?????????????????????????????????????????????????? | | ?????????????????????????????????????????????????? | | ?????????????????????????????????????????????????? | | ?????????????????????????????????????????????????? | | ?????????????????????????????????????????????????? | | ?????????????????????????????????????????????????? | | ?????????????????????????????????????????????????? | | ?????????????????????????????????????????????????? | | ?????????????????????????????????????????????????? | | ?????????????????????????????????????????????????? | | ?????????????????????????????????????????????????? | | ?????????????????????????????????????????????????? | | ?????????????????????????????????????????????????? | | ?????????????????????????????????????????????????? | | ?????????????????????????????????????????????????? | +----------------------------------------------------+ Best States ------------- Heat Dissipation 64 Energy Generation 25 Energy Capacity 350 Matter Stores 300 Matter Capacity 300 Sight Range 24 Terrain Scan Density 10 Armor Coverage 1425 Resistance: KI 40 Resistance: TH 15 Resistance: EM 20 Evasion (%) 50 Targeting Accuracy 8 Target Analysis 8 Recoil Reduction 2 Offensive Hacking 10 Item Schematics ----------------- Hcp. Storage Unit | -10/Materials | Hacked Humpback | -8/Materials | Scanalyzed Arm. Huge Wheel | -7/Factory | Hacked Robot Schematics ------------------ None Fabricated ------------ Humpback | x1 | -7/Factory Humpback | x1 | -6/Factory Adv. Heavy Treads | x2 | -4/Factory | Preloaded Adv. Heavy Treads | x2 | -4/Factory | Preloaded Alien Tech Used ----------------- None Achievements -------------- None Challenges ------------ None Game ------ Seed PropulsionReactionDiverter Manual? 0 Play Time 02:24:40 Cumulative 538.2 hours Start 2020.05.13 @ 19:50:29 End 2020.05.13 @ 22:13:08 Sessions 3 Manual Loads 0 Difficulty Rogue Special Mode None Game No. 859 Rogue 859 Adventurer 0 Explorer 0 Win Type 0 Total 50 Types 32/1/6/8/3/0/0 Lore% 94 Gallery% 94 Achievement% 82 Wizard Run 0 Options --------- ASCII 1 Keyboard 0 Movement Numpad Keybinds 0 Fullscreen 0 Font 14/SmallcapsGlow Map View 76x50 Tactical HUD 1 Map Filters NONE Filters NONE Steam 1 RUN: afad4019-1751-4f67-9f5a-bb6cf45ebb13